Body Name,Body,Service division categorisation,Expense Type,Date paid,Transaction Reference,Net,Supplier Name,
South Holland District Council,http://statistics.data.gov.uk/id/local-authority/32UF,Environmental Services,Agency Staff,04/12/2014,IJ00035050,126.00,247 Personnel Ltd, 
South Holland District Council,http://statistics.data.gov.uk/id/local-authority/32UF,Environmental Services,Agency Staff,04/12/2014,IJ00035050,875.25,247 Personnel Ltd, 
South Holland District Council,http://statistics.data.gov.uk/id/local-authority/32UF,Environmental Services,Agency Staff,04/12/2014,IJ00035050,337.50,247 Personnel Ltd, 
South Holland District Council,http://statistics.data.gov.uk/id/local-authority/32UF,Asset and Property,Agency Staff,04/12/2014,IJ00035067,768.46,5 Star Facility Management, 
South Holland District Council,http://statistics.data.gov.uk/id/local-authority/32UF,Capital,Works to Buildings (main Contractor),04/12/2014,IJ00034972,1931.36,A Coupland (Surfacing) Ltd, 
South Holland District Council,http://statistics.data.gov.uk/id/local-authority/32UF,Housing Landlord Manager,Maintenance of Footpaths and Roadways,04/12/2014,IJ00035074,3359.08,A Coupland (Surfacing) Ltd, 
South Holland District Council,http://statistics.data.gov.uk/id/local-authority/32UF,ICT and Customer Services,Professional & Contractors Fees,04/12/2014,IJ00034962,5000.00,Adam Continuity Ltd, 
South Holland District Council,http://statistics.data.gov.uk/id/local-authority/32UF,Environmental Services,Professional & Contractors Fees,04/12/2014,IJ00034992,1800.00,A Riddel Skip Hire & Scrap Metal Merchants, 
South Holland District Council,http://statistics.data.gov.uk/id/local-authority/32UF,Environmental Services,Agency Staff,04/12/2014,IJ00035024,1558.05,Blue Arrow Ltd, 
South Holland District Council,http://statistics.data.gov.uk/id/local-authority/32UF,Environmental Services,Agency Staff,04/12/2014,IJ00035024,1226.85,Blue Arrow Ltd, 
South Holland District Council,http://statistics.data.gov.uk/id/local-authority/32UF,Environmental Services,Agency Staff,04/12/2014,IJ00035024,384.43,Blue Arrow Ltd, 
South Holland District Council,http://statistics.data.gov.uk/id/local-authority/32UF,Environmental Services,Agency Staff,04/12/2014,IJ00035024,522.72,Blue Arrow Ltd, 
South Holland District Council,http://statistics.data.gov.uk/id/local-authority/32UF,Chief Executive,Shared Management,04/12/2014,IJ00035058,51707.88,Breckland Council, 
South Holland District Council,http://statistics.data.gov.uk/id/local-authority/32UF,ICT and Customer Services,Computer Software Licence Costs,04/12/2014,IJ00035033,50995.00,Capita Business Services Ltd, 
South Holland District Council,http://statistics.data.gov.uk/id/local-authority/32UF,Housing Landlord Manager,Sewerage Treatment Works,04/12/2014,IJ00035076,20010.18,C.G. Godfrey Ltd, 
South Holland District Council,http://statistics.data.gov.uk/id/local-authority/32UF,Housing Landlord Manager,Sewerage Treatment Works,04/12/2014,IJ00035079,804.60,C.G. Godfrey Ltd, 
South Holland District Council,http://statistics.data.gov.uk/id/local-authority/32UF,Economic Development,Professional & Contractors Fees,04/12/2014,IJ00034999,1335.00,Dfb Associates Limited, 
South Holland District Council,http://statistics.data.gov.uk/id/local-authority/32UF,Housing Landlord Manager,Gas,04/12/2014,IJ00035012,532.44,Espo Gas And Electricity, 
South Holland District Council,http://statistics.data.gov.uk/id/local-authority/32UF,Housing Landlord Manager,Grounds Maintenance Contract (External),04/12/2014,IJ00035071,1840.00,Greenscape Tree Safe Ltd, 
South Holland District Council,http://statistics.data.gov.uk/id/local-authority/32UF,Environmental Services,Agency Staff,04/12/2014,IJ00034986,71.48,Integrity Plus Ltd, 
South Holland District Council,http://statistics.data.gov.uk/id/local-authority/32UF,Environmental Services,Agency Staff,04/12/2014,IJ00034986,71.48,Integrity Plus Ltd, 
South Holland District Council,http://statistics.data.gov.uk/id/local-authority/32UF,Environmental Services,Agency Staff,04/12/2014,IJ00034986,209.65,Integrity Plus Ltd, 
South Holland District Council,http://statistics.data.gov.uk/id/local-authority/32UF,Environmental Services,Agency Staff,04/12/2014,IJ00034986,363.34,Integrity Plus Ltd, 
South Holland District Council,http://statistics.data.gov.uk/id/local-authority/32UF,Environmental Services,Agency Staff,04/12/2014,IJ00034986,216.04,Integrity Plus Ltd, 
South Holland District Council,http://statistics.data.gov.uk/id/local-authority/32UF,Environmental Services,Agency Staff,04/12/2014,IJ00035083,276.37,Integrity Plus Ltd, 
South Holland District Council,http://statistics.data.gov.uk/id/local-authority/32UF,Environmental Services,Agency Staff,04/12/2014,IJ00035083,363.34,Integrity Plus Ltd, 
South Holland District Council,http://statistics.data.gov.uk/id/local-authority/32UF,Environmental Services,Agency Staff,04/12/2014,IJ00035083,363.34,Integrity Plus Ltd, 
South Holland District Council,http://statistics.data.gov.uk/id/local-authority/32UF,Housing Landlord Manager,Agency Staff,04/12/2014,IJ00035027,848.78,James Andrews Recruitment Solutions, 
South Holland District Council,http://statistics.data.gov.uk/id/local-authority/32UF,Housing Landlord Manager,Agency Staff,04/12/2014,IJ00035028,848.78,James Andrews Recruitment Solutions, 
South Holland District Council,http://statistics.data.gov.uk/id/local-authority/32UF,Housing Landlord Manager,Agency Staff,04/12/2014,IJ00035029,848.78,James Andrews Recruitment Solutions, 
South Holland District Council,http://statistics.data.gov.uk/id/local-authority/32UF,Housing Landlord Manager,Agency Staff,04/12/2014,IJ00035030,762.76,James Andrews Recruitment Solutions, 
South Holland District Council,http://statistics.data.gov.uk/id/local-authority/32UF,Building Control,Buildings Maintenance - Responsive,04/12/2014,IJ00035015,1913.93,Lincolnshire County Council, 
South Holland District Council,http://statistics.data.gov.uk/id/local-authority/32UF,Building Control,Buildings Maintenance - Responsive,04/12/2014,IJ00035016,2126.52,Lincolnshire County Council, 
South Holland District Council,http://statistics.data.gov.uk/id/local-authority/32UF,Planning,Professional & Contractors Fees,04/12/2014,IJ00035022,3004.00,Lincolnshire County Council, 
South Holland District Council,http://statistics.data.gov.uk/id/local-authority/32UF,Democratic Services,Lincolnshire Legal Services,04/12/2014,IJ00035090,8605.85,Lincolnshire County Council, 
South Holland District Council,http://statistics.data.gov.uk/id/local-authority/32UF,Democratic Services,Lincolnshire Legal Services,04/12/2014,IJ00035090,836.00,Lincolnshire County Council, 
South Holland District Council,http://statistics.data.gov.uk/id/local-authority/32UF,Corporate Improvement and Performance,Professional & Contractors Fees,04/12/2014,IJ00035099,18478.83,Lincolnshire County Council, 
South Holland District Council,http://statistics.data.gov.uk/id/local-authority/32UF,Planning,Legal Fees,04/12/2014,IJ00035023,1852.24,Local Government Association, 
South Holland District Council,http://statistics.data.gov.uk/id/local-authority/32UF,Community Development,Fixtures And Fittings,04/12/2014,IJ00035060,507.42,Otis Ltd, 
South Holland District Council,http://statistics.data.gov.uk/id/local-authority/32UF,Community Development,Premises and Room Hire,04/12/2014,IJ00035066,-806.25,Polka Dot Academy, 
South Holland District Council,http://statistics.data.gov.uk/id/local-authority/32UF,Community Development,Other Hire Fees,04/12/2014,IJ00035066,-530.00,Polka Dot Academy, 
South Holland District Council,http://statistics.data.gov.uk/id/local-authority/32UF,Community Development,Payments to Bodies in Respect of Income Collected,04/12/2014,IJ00035066,6224.00,Polka Dot Academy, 
South Holland District Council,http://statistics.data.gov.uk/id/local-authority/32UF,Community Development,Commission,04/12/2014,IJ00035066,-622.40,Polka Dot Academy, 
South Holland District Council,http://statistics.data.gov.uk/id/local-authority/32UF,Environmental Services,Agency Staff,04/12/2014,IJ00035001,805.95,The Best Connection Group Ltd, 
South Holland District Council,http://statistics.data.gov.uk/id/local-authority/32UF,Environmental Services,Agency Staff,04/12/2014,IJ00035001,76.69,The Best Connection Group Ltd, 
South Holland District Council,http://statistics.data.gov.uk/id/local-authority/32UF,Community Development,Film and Entertainment Costs,04/12/2014,IJ00035062,591.41,Twentieth Century Fox Film Co Ltd, 
South Holland District Council,http://statistics.data.gov.uk/id/local-authority/32UF,Environmental Services,Grants and Contributions to Outside Bodies- No Service Recei,04/12/2014,IJ00034965,5304.54,Tyrrell Contractors Ltd, 
South Holland District Council,http://statistics.data.gov.uk/id/local-authority/32UF,Planning,"Books, Magazines and Other Publications",04/12/2014,IJ00035093,49.02,Thomson Reuters, 
South Holland District Council,http://statistics.data.gov.uk/id/local-authority/32UF,Planning,"Books, Magazines and Other Publications",04/12/2014,IJ00035093,2095.98,Thomson Reuters, 
South Holland District Council,http://statistics.data.gov.uk/id/local-authority/32UF,Community Development,Other Miscellaneous Expenses,04/12/2014,IJ00034994,3503.99,Boston Borough Council, 
South Holland District Council,http://statistics.data.gov.uk/id/local-authority/32UF,ICT and Customer Services,Computer Software Licence Costs,04/12/2014,IJ00035068,6870.00,MODERN MINDSET LTD, 
South Holland District Council,http://statistics.data.gov.uk/id/local-authority/32UF,Community Development,Performers and Entertainers Fees,04/12/2014,IJ00035061,19031.83,Polka Dot Pantomimes, 
South Holland District Council,http://statistics.data.gov.uk/id/local-authority/32UF,Finance,Banking Charges,04/12/2014,IJ00035052,543.05,Lloyds TSB, 
South Holland District Council,http://statistics.data.gov.uk/id/local-authority/32UF,Finance,Postages,04/12/2014,IJ00035039,10000.00,NEOPOST LIMITED, 
South Holland District Council,http://statistics.data.gov.uk/id/local-authority/32UF,Building Control,Course Fees,04/12/2014,IJ00035014,1400.00,BSRIA Limited, 
South Holland District Council,http://statistics.data.gov.uk/id/local-authority/32UF,Environmental Services,Clothing Uniforms And Laundry,04/12/2014,IJ00035070,118.80,Contego Safety Solutions Ltd, 
South Holland District Council,http://statistics.data.gov.uk/id/local-authority/32UF,Environmental Services,Clothing Uniforms And Laundry,04/12/2014,IJ00035070,1157.97,Contego Safety Solutions Ltd, 
South Holland District Council,http://statistics.data.gov.uk/id/local-authority/32UF,ICT and Customer Services,Computer Software Licence Costs,04/12/2014,IJ00035081,3250.00,Xpress Software Solutions Ltd, 
South Holland District Council,http://statistics.data.gov.uk/id/local-authority/32UF,Housing Landlord Manager,External Painting Repairs,04/12/2014,IJ00035000,32590.08,Novus Property Solutions Ltd, 
South Holland District Council,http://statistics.data.gov.uk/id/local-authority/32UF,Housing Landlord Manager,Gas Repairs,04/12/2014,IJ00034971,15039.41,Aaron Services Ltd, 
South Holland District Council,http://statistics.data.gov.uk/id/local-authority/32UF,Housing Landlord Manager,Gas Renewals,04/12/2014,IJ00034973,2256.81,Aaron Services Ltd, 
South Holland District Council,http://statistics.data.gov.uk/id/local-authority/32UF,Housing Landlord Manager,Gas Servicing,04/12/2014,IJ00034975,18787.70,Aaron Services Ltd, 
South Holland District Council,http://statistics.data.gov.uk/id/local-authority/32UF,Economic Development,Grants and Contributions to Outside Bodies- No Service Recei,04/12/2014,IJ00034968,4141.25,Quarterbridge Project Management Limited, 
South Holland District Council,http://statistics.data.gov.uk/id/local-authority/32UF,Planning,Professional & Contractors Fees,04/12/2014,IJ00035097,966.88,MatchTech Group Plc, 
South Holland District Council,http://statistics.data.gov.uk/id/local-authority/32UF,Environmental Services,Maintenance,04/12/2014,IJ00034981,3200.00,Kier FPS Limited, 
South Holland District Council,http://statistics.data.gov.uk/id/local-authority/32UF,Environmental Services,Maintenance,04/12/2014,IJ00035043,44.05,Kier FPS Limited, 
South Holland District Council,http://statistics.data.gov.uk/id/local-authority/32UF,Environmental Services,Maintenance,04/12/2014,IJ00035043,176.20,Kier FPS Limited, 
South Holland District Council,http://statistics.data.gov.uk/id/local-authority/32UF,Environmental Services,Maintenance,04/12/2014,IJ00035043,6324.40,Kier FPS Limited, 
South Holland District Council,http://statistics.data.gov.uk/id/local-authority/32UF,Environmental Services,Maintenance,04/12/2014,IJ00035043,4743.30,Kier FPS Limited, 
South Holland District Council,http://statistics.data.gov.uk/id/local-authority/32UF,Environmental Health,Professional & Contractors Fees,04/12/2014,IJ00035088,1000.00,Keystone Counsultants, 
South Holland District Council,http://statistics.data.gov.uk/id/local-authority/32UF,Community Development,Performers and Entertainers Fees,04/12/2014,IJ00035077,793.32,Dave Mauchline Theatre Programming, 
South Holland District Council,http://statistics.data.gov.uk/id/local-authority/32UF,Democratic Services,Other Miscellaneous Expenses,04/12/2014,IJ00035055,2575.00,Hearts, 
South Holland District Council,http://statistics.data.gov.uk/id/local-authority/32UF,Finance,Compass Point Business Services,09/12/2014,IJ00035189,248630.66,Compass Point Business Srvcs (East Coast) Ltd, 
South Holland District Council,http://statistics.data.gov.uk/id/local-authority/32UF,Finance,Professional & Contractors Fees,10/12/2014,IJ00035212,520.29,Lloyds TSB, 
South Holland District Council,http://statistics.data.gov.uk/id/local-authority/32UF,Finance,Professional & Contractors Fees,10/12/2014,IJ00035214,592.80,Lloyds TSB, 
South Holland District Council,http://statistics.data.gov.uk/id/local-authority/32UF,Environmental Services,Agency Staff,11/12/2014,IJ00035223,468.00,247 Personnel Ltd, 
South Holland District Council,http://statistics.data.gov.uk/id/local-authority/32UF,Environmental Services,Agency Staff,11/12/2014,IJ00035223,767.25,247 Personnel Ltd, 
South Holland District Council,http://statistics.data.gov.uk/id/local-authority/32UF,Environmental Services,Agency Staff,11/12/2014,IJ00035223,58.50,247 Personnel Ltd, 
South Holland District Council,http://statistics.data.gov.uk/id/local-authority/32UF,Community Development,Premises and Room Hire,11/12/2014,IJ00035269,-243.33,50 plus Sports and Social Club, 
South Holland District Council,http://statistics.data.gov.uk/id/local-authority/32UF,Community Development,Other Hire Fees,11/12/2014,IJ00035269,-203.34,50 plus Sports and Social Club, 
South Holland District Council,http://statistics.data.gov.uk/id/local-authority/32UF,Community Development,Payments to Bodies in Respect of Income Collected,11/12/2014,IJ00035269,3838.00,50 plus Sports and Social Club, 
South Holland District Council,http://statistics.data.gov.uk/id/local-authority/32UF,Community Development,Commission,11/12/2014,IJ00035269,-424.11,50 plus Sports and Social Club, 
South Holland District Council,http://statistics.data.gov.uk/id/local-authority/32UF,Democratic Services,Course Fees,11/12/2014,IJ00035261,785.00,Assoc. Of Electoral Admins Ltd, 
South Holland District Council,http://statistics.data.gov.uk/id/local-authority/32UF,Democratic Services,Course Fees,11/12/2014,IJ00035262,715.00,Assoc. Of Electoral Admins Ltd, 
South Holland District Council,http://statistics.data.gov.uk/id/local-authority/32UF,Housing Landlord Manager,Cesspool Empying,11/12/2014,IJ00035143,357.00,Bates Environmental Ltd, 
South Holland District Council,http://statistics.data.gov.uk/id/local-authority/32UF,Housing Landlord Manager,Drain Repairs,11/12/2014,IJ00035143,3130.00,Bates Environmental Ltd, 
South Holland District Council,http://statistics.data.gov.uk/id/local-authority/32UF,Environmental Services,Agency Staff,11/12/2014,IJ00035176,1502.20,Blue Arrow Ltd, 
South Holland District Council,http://statistics.data.gov.uk/id/local-authority/32UF,Environmental Services,Agency Staff,11/12/2014,IJ00035176,1135.53,Blue Arrow Ltd, 
South Holland District Council,http://statistics.data.gov.uk/id/local-authority/32UF,Environmental Services,Agency Staff,11/12/2014,IJ00035176,674.98,Blue Arrow Ltd, 
South Holland District Council,http://statistics.data.gov.uk/id/local-authority/32UF,Community Development,Performers and Entertainers Fees,11/12/2014,IJ00035255,1001.11,Blunderbus Theatre Company, 
South Holland District Council,http://statistics.data.gov.uk/id/local-authority/32UF,Economic Development,Professional & Contractors Fees,11/12/2014,IJ00035178,1222.45,Breckland Council, 
South Holland District Council,http://statistics.data.gov.uk/id/local-authority/32UF,Finance,Telephones,11/12/2014,IJ00035266,5914.64,British Telecom Plc, 
South Holland District Council,http://statistics.data.gov.uk/id/local-authority/32UF,Community Development,Payments to Bodies in Respect of Income Collected,11/12/2014,IJ00035246,828.00,Caterwell East Anglia, 
South Holland District Council,http://statistics.data.gov.uk/id/local-authority/32UF,Community Development,Commission,11/12/2014,IJ00035246,-69.00,Caterwell East Anglia, 
South Holland District Council,http://statistics.data.gov.uk/id/local-authority/32UF,Community Development,External Printing and Design Costs,11/12/2014,IJ00035250,2448.00,Classic Printers, 
South Holland District Council,http://statistics.data.gov.uk/id/local-authority/32UF,Environmental Services,Other Miscellaneous Expenses,11/12/2014,IJ00035215,2400.00,C P Davidson & Sons Ltd, 
South Holland District Council,http://statistics.data.gov.uk/id/local-authority/32UF,Building Control,Furniture and Equipment,11/12/2014,IJ00035221,535.54,Dell Computer Corporation Ltd, 
South Holland District Council,http://statistics.data.gov.uk/id/local-authority/32UF,Housing Landlord Manager,Furniture and Equipment,11/12/2014,IJ00035161,859.00,Espo, 
South Holland District Council,http://statistics.data.gov.uk/id/local-authority/32UF,Community Development,Gas,11/12/2014,IJ00035259,1133.36,Espo Gas And Electricity, 
South Holland District Council,http://statistics.data.gov.uk/id/local-authority/32UF,Community Development,Other Miscellaneous Expenses,11/12/2014,IJ00035144,3208.33,Fuse Fireworks, 
South Holland District Council,http://statistics.data.gov.uk/id/local-authority/32UF,Environmental Services,Grounds Maintenance Contract (External),11/12/2014,IJ00035104,650.00,Greenscape Tree Safe Ltd, 
South Holland District Council,http://statistics.data.gov.uk/id/local-authority/32UF,Community Development,Grounds Maintenance Contract (External),11/12/2014,IJ00035104,795.00,Greenscape Tree Safe Ltd, 
South Holland District Council,http://statistics.data.gov.uk/id/local-authority/32UF,Democratic Services,Other Miscellaneous Expenses,11/12/2014,IJ00035193,833.33,Hallgate Timber Ltd, 
South Holland District Council,http://statistics.data.gov.uk/id/local-authority/32UF,Revs and Bens,Court Costs,11/12/2014,IJ00035233,609.00,H M C S, 
South Holland District Council,http://statistics.data.gov.uk/id/local-authority/32UF,Revs and Bens,Court Costs,11/12/2014,IJ00035233,27.00,H M C S, 
South Holland District Council,http://statistics.data.gov.uk/id/local-authority/32UF,Democratic Services,Other Miscellaneous Expenses,11/12/2014,IJ00035260,750.00,Holbeach Parish Council, 
South Holland District Council,http://statistics.data.gov.uk/id/local-authority/32UF,Revs and Bens,VAT Customs and Excise,11/12/2014,IJ00035124,878.25,Jacobs Certificated Bailiffs, 
South Holland District Council,http://statistics.data.gov.uk/id/local-authority/32UF,Revs and Bens,VAT Customs and Excise,11/12/2014,IJ00035171,709.69,Jacobs Certificated Bailiffs, 
South Holland District Council,http://statistics.data.gov.uk/id/local-authority/32UF,Housing Landlord Manager,Agency Staff,11/12/2014,IJ00035207,848.78,James Andrews Recruitment Solutions, 
South Holland District Council,http://statistics.data.gov.uk/id/local-authority/32UF,Community Development,Leisure Management,11/12/2014,IJ00035295,5631.03,Leisure Connection Ltd, 
South Holland District Council,http://statistics.data.gov.uk/id/local-authority/32UF,Community Development,Leisure Management,11/12/2014,IJ00035295,5631.03,Leisure Connection Ltd, 
South Holland District Council,http://statistics.data.gov.uk/id/local-authority/32UF,Democratic Services,Other Miscellaneous Expenses,11/12/2014,IJ00035159,500.00,Long Sutton Community Led Plan Steering Group, 
South Holland District Council,http://statistics.data.gov.uk/id/local-authority/32UF,Capital,Works to Buildings (main Contractor),11/12/2014,IJ00035227,1510.00,M E Goodyear Property Maintenance, 
South Holland District Council,http://statistics.data.gov.uk/id/local-authority/32UF,Housing Landlord Manager,Buildings Maintenance - Responsive,11/12/2014,IJ00035186,900.00,Obam Lift Services Ltd, 
South Holland District Council,http://statistics.data.gov.uk/id/local-authority/32UF,Environmental Services,Professional & Contractors Fees,11/12/2014,IJ00035237,1349.48,Ocs Group Uk Limited TA Cannon, 
South Holland District Council,http://statistics.data.gov.uk/id/local-authority/32UF,Environmental Services,Furniture and Equipment,11/12/2014,IJ00035102,1229.15,Organic Recycling Ltd, 
South Holland District Council,http://statistics.data.gov.uk/id/local-authority/32UF,Planning,Agency Staff,11/12/2014,IJ00035177,627.00,Plann.It Limited, 
South Holland District Council,http://statistics.data.gov.uk/id/local-authority/32UF,Environmental Services,Other Miscellaneous Expenses,11/12/2014,IJ00035150,645.75,Rigby Taylor Limited, 
South Holland District Council,http://statistics.data.gov.uk/id/local-authority/32UF,Community Development,"Books, Magazines and Other Publications",11/12/2014,IJ00035194,14865.00,S.Holland Citizens Advice Bureau, 
South Holland District Council,http://statistics.data.gov.uk/id/local-authority/32UF,Community Development,Electricity,11/12/2014,IJ00035256,2146.56,Southern Electric, 
South Holland District Council,http://statistics.data.gov.uk/id/local-authority/32UF,Environmental Services,Professional & Contractors Fees,11/12/2014,IJ00035116,3908.89,South Holland Maintenance Ltd, 
South Holland District Council,http://statistics.data.gov.uk/id/local-authority/32UF,Environmental Services,Agency Staff,11/12/2014,IJ00035110,89.55,The Best Connection Group Ltd, 
South Holland District Council,http://statistics.data.gov.uk/id/local-authority/32UF,Environmental Services,Agency Staff,11/12/2014,IJ00035110,513.42,The Best Connection Group Ltd, 
South Holland District Council,http://statistics.data.gov.uk/id/local-authority/32UF,Environmental Services,Agency Staff,11/12/2014,IJ00035110,95.52,The Best Connection Group Ltd, 
South Holland District Council,http://statistics.data.gov.uk/id/local-authority/32UF,Environmental Services,Tyres,11/12/2014,IJ00035225,1669.61,Vaculug Traction Tyres Ltd, 
South Holland District Council,http://statistics.data.gov.uk/id/local-authority/32UF,Environmental Services,Tyres,11/12/2014,IJ00035225,1355.86,Vaculug Traction Tyres Ltd, 
South Holland District Council,http://statistics.data.gov.uk/id/local-authority/32UF,Environmental Services,Tyres,11/12/2014,IJ00035225,20.00,Vaculug Traction Tyres Ltd, 
South Holland District Council,http://statistics.data.gov.uk/id/local-authority/32UF,Environmental Services,Tyres,11/12/2014,IJ00035225,237.10,Vaculug Traction Tyres Ltd, 
South Holland District Council,http://statistics.data.gov.uk/id/local-authority/32UF,Environmental Services,Tyres,11/12/2014,IJ00035225,149.19,Vaculug Traction Tyres Ltd, 
South Holland District Council,http://statistics.data.gov.uk/id/local-authority/32UF,Housing Landlord Manager,Void Repairs,11/12/2014,IJ00035128,540.00,Spotless Cleaning, 
South Holland District Council,http://statistics.data.gov.uk/id/local-authority/32UF,Housing Landlord Manager,"Books, Magazines and Other Publications",11/12/2014,IJ00035190,1002.00,Thomson Reuters, 
South Holland District Council,http://statistics.data.gov.uk/id/local-authority/32UF,ICT and Customer Services,Computer Software Licence Costs,11/12/2014,IJ00035131,8100.00,Axial Systems Ltd, 
South Holland District Council,http://statistics.data.gov.uk/id/local-authority/32UF,ICT and Customer Services,Computer Hardware Maintenance,11/12/2014,IJ00035242,1922.28,Boston Borough Council, 
South Holland District Council,http://statistics.data.gov.uk/id/local-authority/32UF,ICT and Customer Services,Computer Hardware Maintenance,11/12/2014,IJ00035243,750.00,Boston Borough Council, 
South Holland District Council,http://statistics.data.gov.uk/id/local-authority/32UF,Housing Landlord Manager,Computer Hardware Maintenance,11/12/2014,IJ00035092,925.00,Excitech Ltd, 
South Holland District Council,http://statistics.data.gov.uk/id/local-authority/32UF,Capital,Works to Buildings (main Contractor),11/12/2014,IJ00035228,1600.00,MPL HOME IMPROVEMENTS SERVICES LINCS LTD, 
South Holland District Council,http://statistics.data.gov.uk/id/local-authority/32UF,Community Development,Other Miscellaneous Expenses,11/12/2014,IJ00035200,1825.00,Cook Connect Ltd, 
South Holland District Council,http://statistics.data.gov.uk/id/local-authority/32UF,Housing Landlord Manager,Buildings Maintenance - Responsive,11/12/2014,IJ00035230,12422.00,M Yould Plumbing and Heating Ltd, 
South Holland District Council,http://statistics.data.gov.uk/id/local-authority/32UF,Community Development,Subscriptions to Organisations and Other Bodies,11/12/2014,IJ00035268,500.00,Leisure in the Community, 
South Holland District Council,http://statistics.data.gov.uk/id/local-authority/32UF,Capital,Works to Buildings (main Contractor),11/12/2014,IJ00035105,2220.00,MCP Environmental, 
South Holland District Council,http://statistics.data.gov.uk/id/local-authority/32UF,ICT and Customer Services,Professional & Contractors Fees,11/12/2014,IJ00035216,720.00,NTA Monitor Limited, 
South Holland District Council,http://statistics.data.gov.uk/id/local-authority/32UF,Economic Development,Professional & Contractors Fees,11/12/2014,IJ00035188,5069.75,RESOURCE4GROWTH C I C LTD, 
South Holland District Council,http://statistics.data.gov.uk/id/local-authority/32UF,Economic Development,Professional & Contractors Fees,11/12/2014,IJ00035179,1795.00,Oakwell Management Services Limited, 
South Holland District Council,http://statistics.data.gov.uk/id/local-authority/32UF,Democratic Services,Course Fees,11/12/2014,IJ00035232,525.00,East Midlands Councils, 
South Holland District Council,http://statistics.data.gov.uk/id/local-authority/32UF,Community Development,Other Miscellaneous Expenses,11/12/2014,IJ00035202,13300.00,City of London Sinfonia, 
South Holland District Council,http://statistics.data.gov.uk/id/local-authority/32UF,Economic Development,Grants and Contributions to Outside Bodies- No Service Recei,11/12/2014,IJ00035219,2240.00,Badges Ltd TA Enterprise Products, 
South Holland District Council,http://statistics.data.gov.uk/id/local-authority/32UF,Building Control,Course Fees,11/12/2014,IJ00035152,855.00,The Lighting Industry Association Ltd, 
South Holland District Council,http://statistics.data.gov.uk/id/local-authority/32UF,Environmental Services,Other Miscellaneous Expenses,11/12/2014,IJ00035107,1500.00,PRO-CLEAN INDUSTRIAL UK LTD, 
South Holland District Council,http://statistics.data.gov.uk/id/local-authority/32UF,Economic Development,Grants and Contributions to Outside Bodies- No Service Recei,11/12/2014,IJ00035224,12000.00,D AND S FACTORS LTD, 
South Holland District Council,http://statistics.data.gov.uk/id/local-authority/32UF,Economic Development,Grants and Contributions to Outside Bodies- No Service Recei,11/12/2014,IJ00035220,5050.00,UNITED VAN LINERS LTD, 
South Holland District Council,http://statistics.data.gov.uk/id/local-authority/32UF,Democratic Services,Other Miscellaneous Expenses,11/12/2014,IJ00035172,1350.00,Glen Park Partnership CIC, 
South Holland District Council,http://statistics.data.gov.uk/id/local-authority/32UF,Community Development,Performers and Entertainers Fees,11/12/2014,IJ00035252,800.00,LINCOLN DRILL HALL, 
South Holland District Council,http://statistics.data.gov.uk/id/local-authority/32UF,Housing Landlord Manager,Computer Software Licence Costs,18/12/2014,IJ00035438,5271.00,Automico Limited, 
South Holland District Council,http://statistics.data.gov.uk/id/local-authority/32UF,Finance,Buildings Maintenance - Programmed,18/12/2014,IJ00035483,9150.00,Bureau Veritas Uk Ltd, 
South Holland District Council,http://statistics.data.gov.uk/id/local-authority/32UF,Housing Landlord Manager,Void Repairs,18/12/2014,IJ00035429,780.00,Castlebuild Scaffolding Ltd, 
South Holland District Council,http://statistics.data.gov.uk/id/local-authority/32UF,Environmental Services,Furniture and Equipment,18/12/2014,IJ00035307,1275.00,Chisletts (Spalding) Ltd, 
South Holland District Council,http://statistics.data.gov.uk/id/local-authority/32UF,Housing Landlord Manager,Fuel & Oil,18/12/2014,IJ00035388,685.66,C H Jones Ltd, 
South Holland District Council,http://statistics.data.gov.uk/id/local-authority/32UF,Environmental Services,Fuel & Oil,18/12/2014,IJ00035388,214.87,C H Jones Ltd, 
South Holland District Council,http://statistics.data.gov.uk/id/local-authority/32UF,Environmental Services,Fuel & Oil,18/12/2014,IJ00035388,2081.30,C H Jones Ltd, 
South Holland District Council,http://statistics.data.gov.uk/id/local-authority/32UF,Environmental Services,Fuel & Oil,18/12/2014,IJ00035388,1016.43,C H Jones Ltd, 
South Holland District Council,http://statistics.data.gov.uk/id/local-authority/32UF,Environmental Services,Fuel & Oil,18/12/2014,IJ00035388,2471.76,C H Jones Ltd, 
South Holland District Council,http://statistics.data.gov.uk/id/local-authority/32UF,Housing Landlord Manager,Fuel & Oil,18/12/2014,IJ00035388,185.58,C H Jones Ltd, 
South Holland District Council,http://statistics.data.gov.uk/id/local-authority/32UF,Housing Landlord Manager,Fuel & Oil,18/12/2014,IJ00035388,66.57,C H Jones Ltd, 
South Holland District Council,http://statistics.data.gov.uk/id/local-authority/32UF,Environmental Services,Fuel & Oil,18/12/2014,IJ00035388,23.83,C H Jones Ltd, 
South Holland District Council,http://statistics.data.gov.uk/id/local-authority/32UF,Environmental Services,Fuel & Oil,18/12/2014,IJ00035388,4.60,C H Jones Ltd, 
South Holland District Council,http://statistics.data.gov.uk/id/local-authority/32UF,Environmental Health,Fuel & Oil,18/12/2014,IJ00035388,50.67,C H Jones Ltd, 
South Holland District Council,http://statistics.data.gov.uk/id/local-authority/32UF,Environmental Services,Fuel & Oil,18/12/2014,IJ00035388,296.40,C H Jones Ltd, 
South Holland District Council,http://statistics.data.gov.uk/id/local-authority/32UF,Housing Landlord Manager,Fuel & Oil,18/12/2014,IJ00035393,375.40,C H Jones Ltd, 
South Holland District Council,http://statistics.data.gov.uk/id/local-authority/32UF,Environmental Services,Fuel & Oil,18/12/2014,IJ00035393,302.28,C H Jones Ltd, 
South Holland District Council,http://statistics.data.gov.uk/id/local-authority/32UF,Environmental Services,Fuel & Oil,18/12/2014,IJ00035393,1878.54,C H Jones Ltd, 
South Holland District Council,http://statistics.data.gov.uk/id/local-authority/32UF,Environmental Services,Fuel & Oil,18/12/2014,IJ00035393,582.41,C H Jones Ltd, 
South Holland District Council,http://statistics.data.gov.uk/id/local-authority/32UF,Environmental Services,Fuel & Oil,18/12/2014,IJ00035393,2730.37,C H Jones Ltd, 
South Holland District Council,http://statistics.data.gov.uk/id/local-authority/32UF,Housing Landlord Manager,Fuel & Oil,18/12/2014,IJ00035393,154.82,C H Jones Ltd, 
South Holland District Council,http://statistics.data.gov.uk/id/local-authority/32UF,Housing Landlord Manager,Fuel & Oil,18/12/2014,IJ00035393,130.60,C H Jones Ltd, 
South Holland District Council,http://statistics.data.gov.uk/id/local-authority/32UF,Environmental Services,Fuel & Oil,18/12/2014,IJ00035393,5.61,C H Jones Ltd, 
South Holland District Council,http://statistics.data.gov.uk/id/local-authority/32UF,Environmental Health,Fuel & Oil,18/12/2014,IJ00035393,30.12,C H Jones Ltd, 
South Holland District Council,http://statistics.data.gov.uk/id/local-authority/32UF,Environmental Services,Fuel & Oil,18/12/2014,IJ00035393,44.13,C H Jones Ltd, 
South Holland District Council,http://statistics.data.gov.uk/id/local-authority/32UF,Environmental Services,Fuel & Oil,18/12/2014,IJ00035393,47.79,C H Jones Ltd, 
South Holland District Council,http://statistics.data.gov.uk/id/local-authority/32UF,Housing Landlord Manager,Fuel & Oil,18/12/2014,IJ00035493,669.43,C H Jones Ltd, 
South Holland District Council,http://statistics.data.gov.uk/id/local-authority/32UF,Environmental Services,Fuel & Oil,18/12/2014,IJ00035493,366.72,C H Jones Ltd, 
South Holland District Council,http://statistics.data.gov.uk/id/local-authority/32UF,Environmental Services,Fuel & Oil,18/12/2014,IJ00035493,1976.16,C H Jones Ltd, 
South Holland District Council,http://statistics.data.gov.uk/id/local-authority/32UF,Environmental Services,Fuel & Oil,18/12/2014,IJ00035493,1418.58,C H Jones Ltd, 
South Holland District Council,http://statistics.data.gov.uk/id/local-authority/32UF,Environmental Services,Fuel & Oil,18/12/2014,IJ00035493,1882.06,C H Jones Ltd, 
South Holland District Council,http://statistics.data.gov.uk/id/local-authority/32UF,Housing Landlord Manager,Fuel & Oil,18/12/2014,IJ00035493,150.44,C H Jones Ltd, 
South Holland District Council,http://statistics.data.gov.uk/id/local-authority/32UF,Housing Landlord Manager,Fuel & Oil,18/12/2014,IJ00035493,52.17,C H Jones Ltd, 
South Holland District Council,http://statistics.data.gov.uk/id/local-authority/32UF,Environmental Services,Fuel & Oil,18/12/2014,IJ00035493,22.50,C H Jones Ltd, 
South Holland District Council,http://statistics.data.gov.uk/id/local-authority/32UF,Environmental Services,Fuel & Oil,18/12/2014,IJ00035493,3.76,C H Jones Ltd, 
South Holland District Council,http://statistics.data.gov.uk/id/local-authority/32UF,Environmental Health,Fuel & Oil,18/12/2014,IJ00035493,33.33,C H Jones Ltd, 
South Holland District Council,http://statistics.data.gov.uk/id/local-authority/32UF,Environmental Services,Fuel & Oil,18/12/2014,IJ00035493,42.21,C H Jones Ltd, 
South Holland District Council,http://statistics.data.gov.uk/id/local-authority/32UF,Environmental Services,Fuel & Oil,18/12/2014,IJ00035493,50.25,C H Jones Ltd, 
South Holland District Council,http://statistics.data.gov.uk/id/local-authority/32UF,Community Development,External Printing and Design Costs,18/12/2014,IJ00035391,651.00,Classic Printers, 
South Holland District Council,http://statistics.data.gov.uk/id/local-authority/32UF,HR,Other Miscellaneous Expenses,18/12/2014,IJ00035428,5397.00,Compass Point Business Srvcs (East Coast) Ltd, 
South Holland District Council,http://statistics.data.gov.uk/id/local-authority/32UF,Environmental Services,Maintenance,18/12/2014,IJ00035384,569.96,C P Davidson & Sons Ltd, 
South Holland District Council,http://statistics.data.gov.uk/id/local-authority/32UF,Environmental Services,Maintenance,18/12/2014,IJ00035384,4345.98,C P Davidson & Sons Ltd, 
South Holland District Council,http://statistics.data.gov.uk/id/local-authority/32UF,Environmental Services,Maintenance,18/12/2014,IJ00035384,3220.62,C P Davidson & Sons Ltd, 
South Holland District Council,http://statistics.data.gov.uk/id/local-authority/32UF,Environmental Services,Maintenance,18/12/2014,IJ00035384,736.15,C P Davidson & Sons Ltd, 
South Holland District Council,http://statistics.data.gov.uk/id/local-authority/32UF,Environmental Services,Maintenance,18/12/2014,IJ00035365,3618.20,C P Davidson & Sons Ltd, 
South Holland District Council,http://statistics.data.gov.uk/id/local-authority/32UF,Environmental Health,Furniture and Equipment,18/12/2014,IJ00035500,536.87,Dell Computer Corporation Ltd, 
South Holland District Council,http://statistics.data.gov.uk/id/local-authority/32UF,ICT and Customer Services,Furniture and Equipment,18/12/2014,IJ00035502,1750.00,Dell Computer Corporation Ltd, 
South Holland District Council,http://statistics.data.gov.uk/id/local-authority/32UF,Capital,Works to Buildings (main Contractor),18/12/2014,IJ00035475,1715.00,Dolphin Mobility East Mids Ltd, 
South Holland District Council,http://statistics.data.gov.uk/id/local-authority/32UF,Asset and Property,Gas,18/12/2014,IJ00035380,1601.48,Espo Gas And Electricity, 
South Holland District Council,http://statistics.data.gov.uk/id/local-authority/32UF,HR,Other Employee Expenses,18/12/2014,IJ00035505,75.10,Fideliti Limited, 
South Holland District Council,http://statistics.data.gov.uk/id/local-authority/32UF,Balance Sheet,Payroll SHDC Child Care,18/12/2014,IJ00035505,1877.50,Fideliti Limited, 
South Holland District Council,http://statistics.data.gov.uk/id/local-authority/32UF,Capital,Works to Buildings (main Contractor),18/12/2014,IJ00035327,165148.00,Foster Property Maintenance Ltd, 
South Holland District Council,http://statistics.data.gov.uk/id/local-authority/32UF,Asset and Property,Buildings Maintenance - Responsive,18/12/2014,IJ00035357,800.00,Glen Farrow UK Ltd, 
South Holland District Council,http://statistics.data.gov.uk/id/local-authority/32UF,Asset and Property,Buildings Maintenance - Responsive,18/12/2014,IJ00035357,200.00,Glen Farrow UK Ltd, 
South Holland District Council,http://statistics.data.gov.uk/id/local-authority/32UF,Community Development,Buildings Maintenance - Responsive,18/12/2014,IJ00035357,558.37,Glen Farrow UK Ltd, 
South Holland District Council,http://statistics.data.gov.uk/id/local-authority/32UF,Community Development,Buildings Maintenance - Responsive,18/12/2014,IJ00035357,200.00,Glen Farrow UK Ltd, 
South Holland District Council,http://statistics.data.gov.uk/id/local-authority/32UF,Community Development,Buildings Maintenance - Responsive,18/12/2014,IJ00035357,831.49,Glen Farrow UK Ltd, 
South Holland District Council,http://statistics.data.gov.uk/id/local-authority/32UF,Community Development,Buildings Maintenance - Responsive,18/12/2014,IJ00035357,100.00,Glen Farrow UK Ltd, 
South Holland District Council,http://statistics.data.gov.uk/id/local-authority/32UF,Environmental Services,Grounds Maintenance Contract (External),18/12/2014,IJ00035359,3155.00,Greenscape Tree Safe Ltd, 
South Holland District Council,http://statistics.data.gov.uk/id/local-authority/32UF,Housing Landlord Manager,Grounds Maintenance Contract (External),18/12/2014,IJ00035362,2450.00,Greenscape Tree Safe Ltd, 
South Holland District Council,http://statistics.data.gov.uk/id/local-authority/32UF,Community Development,Other Communication Costs,18/12/2014,IJ00035498,1791.00,G T S Security, 
South Holland District Council,http://statistics.data.gov.uk/id/local-authority/32UF,Community Development,Other Communication Costs,18/12/2014,IJ00035499,700.14,G T S Security, 
South Holland District Council,http://statistics.data.gov.uk/id/local-authority/32UF,Environmental Services,Agency Staff,18/12/2014,IJ00035329,219.19,Integrity Plus Ltd, 
South Holland District Council,http://statistics.data.gov.uk/id/local-authority/32UF,Environmental Services,Agency Staff,18/12/2014,IJ00035329,133.42,Integrity Plus Ltd, 
South Holland District Council,http://statistics.data.gov.uk/id/local-authority/32UF,Environmental Services,Agency Staff,18/12/2014,IJ00035329,363.34,Integrity Plus Ltd, 
South Holland District Council,http://statistics.data.gov.uk/id/local-authority/32UF,Community Development,Buildings Maintenance - Responsive,18/12/2014,IJ00035392,660.11,J T Ward Joinery Limited, 
South Holland District Council,http://statistics.data.gov.uk/id/local-authority/32UF,Capital,Works to Buildings (main Contractor),18/12/2014,IJ00035458,2894.00,K L Morbey Fencing, 
South Holland District Council,http://statistics.data.gov.uk/id/local-authority/32UF,Community Development,Leisure Management,18/12/2014,IJ00035516,5631.04,1life Management Solutions, 
South Holland District Council,http://statistics.data.gov.uk/id/local-authority/32UF,Community Development,Leisure Management,18/12/2014,IJ00035516,5631.02,1life Management Solutions, 
South Holland District Council,http://statistics.data.gov.uk/id/local-authority/32UF,Housing Landlord Manager,Buildings Maintenance - Responsive,18/12/2014,IJ00035424,852.60,L Fragale, 
South Holland District Council,http://statistics.data.gov.uk/id/local-authority/32UF,Housing Landlord Manager,Buildings Maintenance - Responsive,18/12/2014,IJ00035425,539.30,L Fragale, 
South Holland District Council,http://statistics.data.gov.uk/id/local-authority/32UF,Housing Landlord Manager,Buildings Maintenance - Responsive,18/12/2014,IJ00035400,873.30,L Fragale, 
South Holland District Council,http://statistics.data.gov.uk/id/local-authority/32UF,Housing Landlord Manager,Buildings Maintenance - Responsive,18/12/2014,IJ00035408,583.30,L Fragale, 
South Holland District Council,http://statistics.data.gov.uk/id/local-authority/32UF,Democratic Services,Other Miscellaneous Expenses,18/12/2014,IJ00035490,1600.00,Lincolnshire Chamber Of Commerce & Industry, 
South Holland District Council,http://statistics.data.gov.uk/id/local-authority/32UF,Community Development,Grants and Contributions to Outside Bodies- No Service Recei,18/12/2014,IJ00035348,5050.00,Lincolnshire County Council, 
South Holland District Council,http://statistics.data.gov.uk/id/local-authority/32UF,Community Development,Grants and Contributions to Outside Bodies- No Service Recei,18/12/2014,IJ00035349,36510.00,Lincolnshire County Council, 
South Holland District Council,http://statistics.data.gov.uk/id/local-authority/32UF,Democratic Services,Other Miscellaneous Expenses,18/12/2014,IJ00035332,600.00,Moulton Parish Council, 
South Holland District Council,http://statistics.data.gov.uk/id/local-authority/32UF,Housing Landlord Manager,Void Repairs,18/12/2014,IJ00035450,604.80,M & R Glass & Glazing Ltd, 
South Holland District Council,http://statistics.data.gov.uk/id/local-authority/32UF,Housing Landlord Manager,Buildings Maintenance - Responsive,18/12/2014,IJ00035450,2704.42,M & R Glass & Glazing Ltd, 
South Holland District Council,http://statistics.data.gov.uk/id/local-authority/32UF,Housing,Grants and Contributions to Outside Bodies- No Service Recei,18/12/2014,IJ00035335,1650.00,Obam Lift Services Ltd, 
South Holland District Council,http://statistics.data.gov.uk/id/local-authority/32UF,Balance Sheet,Payroll-Avc,18/12/2014,IJ00035512,749.17,Prudential Pension Fund SRv, 
South Holland District Council,http://statistics.data.gov.uk/id/local-authority/32UF,Asset and Property,Electricity,18/12/2014,IJ00035377,3057.45,Southern Electric, 
South Holland District Council,http://statistics.data.gov.uk/id/local-authority/32UF,Asset and Property,Electricity,18/12/2014,IJ00035361,2580.86,Southern Electric, 
South Holland District Council,http://statistics.data.gov.uk/id/local-authority/32UF,Housing Landlord Manager,Electricity,18/12/2014,IJ00035457,48.91,Southern Electric, 
South Holland District Council,http://statistics.data.gov.uk/id/local-authority/32UF,Housing Landlord Manager,Electricity,18/12/2014,IJ00035457,48.35,Southern Electric, 
South Holland District Council,http://statistics.data.gov.uk/id/local-authority/32UF,Housing Landlord Manager,Electricity,18/12/2014,IJ00035457,51.88,Southern Electric, 
South Holland District Council,http://statistics.data.gov.uk/id/local-authority/32UF,Housing Landlord Manager,Electricity,18/12/2014,IJ00035457,42.67,Southern Electric, 
South Holland District Council,http://statistics.data.gov.uk/id/local-authority/32UF,Housing Landlord Manager,Electricity,18/12/2014,IJ00035457,17.50,Southern Electric, 
South Holland District Council,http://statistics.data.gov.uk/id/local-authority/32UF,Housing Landlord Manager,Electricity,18/12/2014,IJ00035457,62.61,Southern Electric, 
South Holland District Council,http://statistics.data.gov.uk/id/local-authority/32UF,Housing Landlord Manager,Electricity,18/12/2014,IJ00035457,14.34,Southern Electric, 
South Holland District Council,http://statistics.data.gov.uk/id/local-authority/32UF,Housing Landlord Manager,Electricity,18/12/2014,IJ00035457,19.60,Southern Electric, 
South Holland District Council,http://statistics.data.gov.uk/id/local-authority/32UF,Housing Landlord Manager,Electricity,18/12/2014,IJ00035457,44.95,Southern Electric, 
South Holland District Council,http://statistics.data.gov.uk/id/local-authority/32UF,Environmental Services,Electricity,18/12/2014,IJ00035457,144.64,Southern Electric, 
South Holland District Council,http://statistics.data.gov.uk/id/local-authority/32UF,Housing Landlord Manager,Electricity,18/12/2014,IJ00035457,185.48,Southern Electric, 
South Holland District Council,http://statistics.data.gov.uk/id/local-authority/32UF,Housing Landlord Manager,Electricity,18/12/2014,IJ00035457,153.75,Southern Electric, 
South Holland District Council,http://statistics.data.gov.uk/id/local-authority/32UF,Housing Landlord Manager,Electricity,18/12/2014,IJ00035457,93.84,Southern Electric, 
South Holland District Council,http://statistics.data.gov.uk/id/local-authority/32UF,Housing Landlord Manager,Electricity,18/12/2014,IJ00035457,407.97,Southern Electric, 
South Holland District Council,http://statistics.data.gov.uk/id/local-authority/32UF,Housing Landlord Manager,Electricity,18/12/2014,IJ00035457,192.15,Southern Electric, 
South Holland District Council,http://statistics.data.gov.uk/id/local-authority/32UF,Housing Landlord Manager,Electricity,18/12/2014,IJ00035457,432.02,Southern Electric, 
South Holland District Council,http://statistics.data.gov.uk/id/local-authority/32UF,Housing Landlord Manager,Electricity,18/12/2014,IJ00035457,126.90,Southern Electric, 
South Holland District Council,http://statistics.data.gov.uk/id/local-authority/32UF,Housing Landlord Manager,Electricity,18/12/2014,IJ00035457,90.48,Southern Electric, 
South Holland District Council,http://statistics.data.gov.uk/id/local-authority/32UF,Housing Landlord Manager,Electricity,18/12/2014,IJ00035457,75.12,Southern Electric, 
South Holland District Council,http://statistics.data.gov.uk/id/local-authority/32UF,Housing Landlord Manager,Electricity,18/12/2014,IJ00035457,82.82,Southern Electric, 
South Holland District Council,http://statistics.data.gov.uk/id/local-authority/32UF,Housing Landlord Manager,Electricity,18/12/2014,IJ00035457,59.80,Southern Electric, 
South Holland District Council,http://statistics.data.gov.uk/id/local-authority/32UF,Housing Landlord Manager,Electricity,18/12/2014,IJ00035457,89.47,Southern Electric, 
South Holland District Council,http://statistics.data.gov.uk/id/local-authority/32UF,Housing Landlord Manager,Electricity,18/12/2014,IJ00035457,92.83,Southern Electric, 
South Holland District Council,http://statistics.data.gov.uk/id/local-authority/32UF,Housing Landlord Manager,Electricity,18/12/2014,IJ00035457,24.82,Southern Electric, 
South Holland District Council,http://statistics.data.gov.uk/id/local-authority/32UF,Environmental Services,Electricity,18/12/2014,IJ00035457,352.54,Southern Electric, 
South Holland District Council,http://statistics.data.gov.uk/id/local-authority/32UF,Environmental Services,Electricity,18/12/2014,IJ00035457,40.67,Southern Electric, 
South Holland District Council,http://statistics.data.gov.uk/id/local-authority/32UF,Environmental Services,Electricity,18/12/2014,IJ00035457,164.66,Southern Electric, 
South Holland District Council,http://statistics.data.gov.uk/id/local-authority/32UF,Asset and Property,Electricity,18/12/2014,IJ00035457,34.71,Southern Electric, 
South Holland District Council,http://statistics.data.gov.uk/id/local-authority/32UF,Asset and Property,Electricity,18/12/2014,IJ00035457,39.70,Southern Electric, 
South Holland District Council,http://statistics.data.gov.uk/id/local-authority/32UF,Asset and Property,Electricity,18/12/2014,IJ00035457,170.48,Southern Electric, 
South Holland District Council,http://statistics.data.gov.uk/id/local-authority/32UF,Community Development,Electricity,18/12/2014,IJ00035457,211.42,Southern Electric, 
South Holland District Council,http://statistics.data.gov.uk/id/local-authority/32UF,Housing Landlord Manager,Electricity,18/12/2014,IJ00035471,629.10,Southern Electric, 
South Holland District Council,http://statistics.data.gov.uk/id/local-authority/32UF,Environmental Services,Maintenance of Footpaths and Roadways,18/12/2014,IJ00035437,1200.00,South Holland Maintenance Ltd, 
South Holland District Council,http://statistics.data.gov.uk/id/local-authority/32UF,Asset and Property,Buildings Maintenance - Responsive,18/12/2014,IJ00035441,560.00,South Holland Maintenance Ltd, 
South Holland District Council,http://statistics.data.gov.uk/id/local-authority/32UF,Housing,Grants and Contributions to Outside Bodies- No Service Recei,18/12/2014,IJ00035447,1426.00,Stuart Taplin, 
South Holland District Council,http://statistics.data.gov.uk/id/local-authority/32UF,Housing,Grants and Contributions to Outside Bodies- No Service Recei,18/12/2014,IJ00035484,1980.00,Stuart Taplin, 
South Holland District Council,http://statistics.data.gov.uk/id/local-authority/32UF,Housing,Grants and Contributions to Outside Bodies- No Service Recei,18/12/2014,IJ00035486,2158.00,Stuart Taplin, 
South Holland District Council,http://statistics.data.gov.uk/id/local-authority/32UF,Capital,Works to Buildings (main Contractor),18/12/2014,IJ00035336,2055.00,Tks Of Holbeach, 
South Holland District Council,http://statistics.data.gov.uk/id/local-authority/32UF,Community Development,Advertising - Events,18/12/2014,IJ00035445,600.00,Tulip Radio Ltd, 
South Holland District Council,http://statistics.data.gov.uk/id/local-authority/32UF,Asset and Property,Buildings Maintenance - Responsive,18/12/2014,IJ00035459,1350.00,Tyrrell Contractors Ltd, 
South Holland District Council,http://statistics.data.gov.uk/id/local-authority/32UF,Finance,Fees and Charges General,18/12/2014,IJ00035511,-29.43,UNISON, 
South Holland District Council,http://statistics.data.gov.uk/id/local-authority/32UF,Balance Sheet,Payroll-Unison,18/12/2014,IJ00035511,1177.00,UNISON, 
South Holland District Council,http://statistics.data.gov.uk/id/local-authority/32UF,Housing Landlord Manager,Void Repairs,18/12/2014,IJ00035414,840.00,Spotless Cleaning, 
South Holland District Council,http://statistics.data.gov.uk/id/local-authority/32UF,Housing Landlord Manager,Void Repairs,18/12/2014,IJ00035416,1260.00,Spotless Cleaning, 
South Holland District Council,http://statistics.data.gov.uk/id/local-authority/32UF,Community Development,Other Miscellaneous Expenses,18/12/2014,IJ00035482,800.00,Four and Twenty Blackbirds, 
South Holland District Council,http://statistics.data.gov.uk/id/local-authority/32UF,Environmental Services,Furniture and Equipment,18/12/2014,IJ00035492,535.00,G&D Engineering (Moulton) Ltd, 
South Holland District Council,http://statistics.data.gov.uk/id/local-authority/32UF,Community Development,Performers and Entertainers Fees,18/12/2014,IJ00035390,20111.67,Polka Dot Pantomimes, 
South Holland District Council,http://statistics.data.gov.uk/id/local-authority/32UF,Economic Development,Grants and Contributions to Outside Bodies- No Service Recei,18/12/2014,IJ00035330,3023.47,The Friends of Chain Bridge Forge, 
South Holland District Council,http://statistics.data.gov.uk/id/local-authority/32UF,Balance Sheet,ST Creditors NNDR Pool,18/12/2014,IJ00035334,27873.00,Lincolnshire County Council, 
South Holland District Council,http://statistics.data.gov.uk/id/local-authority/32UF,Environmental Services,Furniture and Equipment,18/12/2014,IJ00035520,1359.64,Wybone Ltd, 
South Holland District Council,http://statistics.data.gov.uk/id/local-authority/32UF,Environmental Services,Cleaning Contract,18/12/2014,IJ00035520,120.88,Wybone Ltd, 
South Holland District Council,http://statistics.data.gov.uk/id/local-authority/32UF,Housing Landlord Manager,Staff Training Expenses,18/12/2014,IJ00034979,4020.00,SHELTER TRAINING, 
South Holland District Council,http://statistics.data.gov.uk/id/local-authority/32UF,Democratic Services,Other Miscellaneous Expenses,18/12/2014,IJ00035385,939.00,Celebrate Surfleet Community Group, 
South Holland District Council,http://statistics.data.gov.uk/id/local-authority/32UF,Environmental Services,Grants and Contributions to Outside Bodies- No Service Recei,18/12/2014,IJ00035521,1290.00,Long Sutton Parish Council, 
South Holland District Council,http://statistics.data.gov.uk/id/local-authority/32UF,Asset and Property,Other Miscellaneous Expenses,18/12/2014,IJ00035351,6592.95,E.on Sustainable Energy, 
South Holland District Council,http://statistics.data.gov.uk/id/local-authority/32UF,Asset and Property,Furniture and Equipment,18/12/2014,IJ00035350,1103.00,E.on Sustainable Energy, 
South Holland District Council,http://statistics.data.gov.uk/id/local-authority/32UF,Housing Landlord Manager,Buildings Maintenance - Responsive,18/12/2014,IJ00035436,1762.00,LANDY VENT UK LIMITED, 
South Holland District Council,http://statistics.data.gov.uk/id/local-authority/32UF,Housing,Grants and Contributions to Outside Bodies- No Service Recei,18/12/2014,IJ00035487,2405.00,MPL HOME IMPROVEMENTS SERVICES LINCS LTD, 
South Holland District Council,http://statistics.data.gov.uk/id/local-authority/32UF,Community Development,Other Miscellaneous Expenses,18/12/2014,IJ00035503,1350.00,Cook Connect Ltd, 
South Holland District Council,http://statistics.data.gov.uk/id/local-authority/32UF,Community Development,Other Miscellaneous Expenses,18/12/2014,IJ00035507,900.00,Cook Connect Ltd, 
South Holland District Council,http://statistics.data.gov.uk/id/local-authority/32UF,Housing Landlord Manager,Void Repairs,18/12/2014,IJ00035439,734.00,Andrew Hicks t a Hicks Electrical, 
South Holland District Council,http://statistics.data.gov.uk/id/local-authority/32UF,Housing Landlord Manager,Void Repairs,18/12/2014,IJ00035394,7703.01,M Yould Plumbing and Heating Ltd, 
South Holland District Council,http://statistics.data.gov.uk/id/local-authority/32UF,Housing Landlord Manager,Void Repairs,18/12/2014,IJ00035395,4250.00,M Yould Plumbing and Heating Ltd, 
South Holland District Council,http://statistics.data.gov.uk/id/local-authority/32UF,Housing Landlord Manager,Void Repairs,18/12/2014,IJ00035396,3371.36,M Yould Plumbing and Heating Ltd, 
South Holland District Council,http://statistics.data.gov.uk/id/local-authority/32UF,Housing Landlord Manager,Void Repairs,18/12/2014,IJ00035397,4389.14,M Yould Plumbing and Heating Ltd, 
South Holland District Council,http://statistics.data.gov.uk/id/local-authority/32UF,Housing Landlord Manager,Void Repairs,18/12/2014,IJ00035398,850.00,M Yould Plumbing and Heating Ltd, 
South Holland District Council,http://statistics.data.gov.uk/id/local-authority/32UF,Housing Landlord Manager,Void Repairs,18/12/2014,IJ00035399,4320.00,M Yould Plumbing and Heating Ltd, 
South Holland District Council,http://statistics.data.gov.uk/id/local-authority/32UF,Housing Landlord Manager,Void Repairs,18/12/2014,IJ00035401,4157.04,M Yould Plumbing and Heating Ltd, 
South Holland District Council,http://statistics.data.gov.uk/id/local-authority/32UF,Housing Landlord Manager,Void Repairs,18/12/2014,IJ00035403,3092.84,M Yould Plumbing and Heating Ltd, 
South Holland District Council,http://statistics.data.gov.uk/id/local-authority/32UF,Housing Landlord Manager,Void Repairs,18/12/2014,IJ00035405,1130.00,M Yould Plumbing and Heating Ltd, 
South Holland District Council,http://statistics.data.gov.uk/id/local-authority/32UF,Housing Landlord Manager,Void Repairs,18/12/2014,IJ00035407,980.00,M Yould Plumbing and Heating Ltd, 
South Holland District Council,http://statistics.data.gov.uk/id/local-authority/32UF,Housing Landlord Manager,Buildings Maintenance - Responsive,18/12/2014,IJ00035420,637.50,Justin Doughty, 
South Holland District Council,http://statistics.data.gov.uk/id/local-authority/32UF,Housing Landlord Manager,Buildings Maintenance - Responsive,18/12/2014,IJ00035421,512.50,Justin Doughty, 
South Holland District Council,http://statistics.data.gov.uk/id/local-authority/32UF,Community Development,Leisure Management,18/12/2014,IJ00035294,545.07,Leisure in the Community, 
South Holland District Council,http://statistics.data.gov.uk/id/local-authority/32UF,Community Development,Leisure Management,18/12/2014,IJ00035294,545.07,Leisure in the Community, 
South Holland District Council,http://statistics.data.gov.uk/id/local-authority/32UF,Capital,Works to Buildings (main Contractor),18/12/2014,IJ00035325,4040.00,MCP Environmental, 
South Holland District Council,http://statistics.data.gov.uk/id/local-authority/32UF,Capital,Works to Buildings (main Contractor),18/12/2014,IJ00035328,154596.00,Willmott Dixon Partnerships Ltd, 
South Holland District Council,http://statistics.data.gov.uk/id/local-authority/32UF,Housing Landlord Manager,Professional & Contractors Fees,18/12/2014,IJ00035326,9150.00,DMW Environmental Safety Ltd, 
South Holland District Council,http://statistics.data.gov.uk/id/local-authority/32UF,Planning,Professional & Contractors Fees,18/12/2014,IJ00035296,945.10,MatchTech Group Plc, 
South Holland District Council,http://statistics.data.gov.uk/id/local-authority/32UF,Economic Development,Grants and Contributions to Outside Bodies- No Service Recei,18/12/2014,IJ00035301,9200.00,CROSSKEYS ENGINEERING, 
South Holland District Council,http://statistics.data.gov.uk/id/local-authority/32UF,Economic Development,Grants and Contributions to Outside Bodies- No Service Recei,18/12/2014,IJ00035460,15222.00,George Barnsdale and Sons Ltd, 
South Holland District Council,http://statistics.data.gov.uk/id/local-authority/32UF,Economic Development,Grants and Contributions to Outside Bodies- No Service Recei,18/12/2014,IJ00035456,7500.00,Scotts Precision Manufacturing Limited, 
South Holland District Council,http://statistics.data.gov.uk/id/local-authority/32UF,Environmental Services,Furniture and Equipment,18/12/2014,IJ00035378,1023.75,Channing Engineering Ltd, 
South Holland District Council,http://statistics.data.gov.uk/id/local-authority/32UF,Housing Landlord Manager,Buildings Maintenance - Responsive,18/12/2014,IJ00035495,3990.00,Dean Stevens, 
South Holland District Council,http://statistics.data.gov.uk/id/local-authority/32UF,Economic Development,Grants and Contributions to Outside Bodies- No Service Recei,18/12/2014,IJ00035302,2672.00,Four Woods Ltd, 
South Holland District Council,http://statistics.data.gov.uk/id/local-authority/32UF,Environmental Services,Other Communication Costs,18/12/2014,IJ00035304,1000.00,Redacted Personal Information,REDACTED
South Holland District Council,http://statistics.data.gov.uk/id/local-authority/32UF,Economic Development,Grants and Contributions to Outside Bodies- No Service Recei,18/12/2014,IJ00035491,25000.00,Fold Hill Foods Ltd, 
South Holland District Council,http://statistics.data.gov.uk/id/local-authority/32UF,Economic Development,Professional & Contractors Fees,18/12/2014,IJ00035315,1225.00,YTKO Ltd, 
South Holland District Council,http://statistics.data.gov.uk/id/local-authority/32UF,Economic Development,Professional & Contractors Fees,18/12/2014,IJ00035316,612.50,YTKO Ltd, 
South Holland District Council,http://statistics.data.gov.uk/id/local-authority/32UF,Environmental Health,Furniture and Equipment,18/12/2014,IJ00035308,684.40,Physio Control UK Sales Ltd, 
South Holland District Council,http://statistics.data.gov.uk/id/local-authority/32UF,Environmental Services,Agency Staff,18/12/2014,IJ00035453,308.64,DRIVER HIRE WISBECH AND THE FENS, 
South Holland District Council,http://statistics.data.gov.uk/id/local-authority/32UF,Environmental Services,Agency Staff,18/12/2014,IJ00035453,205.76,DRIVER HIRE WISBECH AND THE FENS, 
South Holland District Council,http://statistics.data.gov.uk/id/local-authority/32UF,Economic Development,Grants and Contributions to Outside Bodies- No Service Recei,18/12/2014,IJ00035319,3132.00,D AND D ENGINEERING LINCS LTD, 
South Holland District Council,http://statistics.data.gov.uk/id/local-authority/32UF,Economic Development,Grants and Contributions to Outside Bodies- No Service Recei,18/12/2014,IJ00035479,1500.00,Parkacre Enterprises Ltd, 
South Holland District Council,http://statistics.data.gov.uk/id/local-authority/32UF,Community Development,Subscriptions to Organisations and Other Bodies,19/12/2014,IJ00035537,1550.00,N K Youth Workshop, 
South Holland District Council,http://statistics.data.gov.uk/id/local-authority/32UF,Asset and Property,Buildings Maintenance - Responsive,23/12/2014,IJ00035358,1587.79,Adt Fire And Security Plc, 
South Holland District Council,http://statistics.data.gov.uk/id/local-authority/32UF,Housing Landlord Manager,Buildings Maintenance - Responsive,23/12/2014,IJ00035638,885.00,Ashford Commercial Ltd, 
South Holland District Council,http://statistics.data.gov.uk/id/local-authority/32UF,Housing Landlord Manager,Materials and Consumables,23/12/2014,IJ00035635,472.45,B Ayres, 
South Holland District Council,http://statistics.data.gov.uk/id/local-authority/32UF,Housing Landlord Manager,Materials and Consumables,23/12/2014,IJ00035635,441.65,B Ayres, 
South Holland District Council,http://statistics.data.gov.uk/id/local-authority/32UF,Housing Landlord Manager,Materials and Consumables,23/12/2014,IJ00035635,55.70,B Ayres, 
South Holland District Council,http://statistics.data.gov.uk/id/local-authority/32UF,Environmental Services,Materials and Consumables,23/12/2014,IJ00035699,6085.35,Bpi Recycled Products, 
South Holland District Council,http://statistics.data.gov.uk/id/local-authority/32UF,Community Development,Payments to Bodies in Respect of Income Collected,23/12/2014,IJ00035568,13722.00,Caterwell East Anglia, 
South Holland District Council,http://statistics.data.gov.uk/id/local-authority/32UF,Community Development,Commission,23/12/2014,IJ00035568,-2175.00,Caterwell East Anglia, 
South Holland District Council,http://statistics.data.gov.uk/id/local-authority/32UF,Housing Landlord Manager,Materials and Consumables,23/12/2014,IJ00035653,2220.00,Commercial Cladding Services Ltd, 
South Holland District Council,http://statistics.data.gov.uk/id/local-authority/32UF,Housing Landlord Manager,Commercial Vehicle Lease,23/12/2014,IJ00035637,2381.24,Crowson Motors Ltd, 
South Holland District Council,http://statistics.data.gov.uk/id/local-authority/32UF,Environmental Services,Materials and Consumables,23/12/2014,IJ00035682,2903.60,Danline International Ltd, 
South Holland District Council,http://statistics.data.gov.uk/id/local-authority/32UF,Collection Fund,Central Share of NDR Income - Government,23/12/2014,IJ00035695,1322851.00,Department For Communities & Local Government, 
South Holland District Council,http://statistics.data.gov.uk/id/local-authority/32UF,Collection Fund,Transitional Protection Payments,23/12/2014,IJ00035695,-43762.00,Department For Communities & Local Government, 
South Holland District Council,http://statistics.data.gov.uk/id/local-authority/32UF,Finance,Business Rates Tariff,23/12/2014,IJ00035695,689770.00,Department For Communities & Local Government, 
South Holland District Council,http://statistics.data.gov.uk/id/local-authority/32UF,Collection Fund,Contribution to Deficit (NDR),23/12/2014,IJ00035695,-12505.00,Department For Communities & Local Government, 
South Holland District Council,http://statistics.data.gov.uk/id/local-authority/32UF,Housing Landlord Manager,Void Repairs,23/12/2014,IJ00035574,550.00,Feneley Flooring Co. Ltd, 
South Holland District Council,http://statistics.data.gov.uk/id/local-authority/32UF,Environmental Services,Agency Staff,23/12/2014,IJ00035528,61.94,Integrity Plus Ltd, 
South Holland District Council,http://statistics.data.gov.uk/id/local-authority/32UF,Environmental Services,Agency Staff,23/12/2014,IJ00035528,142.95,Integrity Plus Ltd, 
South Holland District Council,http://statistics.data.gov.uk/id/local-authority/32UF,Environmental Services,Agency Staff,23/12/2014,IJ00035528,363.34,Integrity Plus Ltd, 
South Holland District Council,http://statistics.data.gov.uk/id/local-authority/32UF,Environmental Services,Agency Staff,23/12/2014,IJ00035528,434.82,Integrity Plus Ltd, 
South Holland District Council,http://statistics.data.gov.uk/id/local-authority/32UF,Capital,"Purchase of Plant, Machinery & Equipment",23/12/2014,IJ00035698,103572.00,Johnston Sweepers Ltd, 
South Holland District Council,http://statistics.data.gov.uk/id/local-authority/32UF,Community Development,Buildings Maintenance - Responsive,23/12/2014,IJ00035524,2572.00,K L Morbey Fencing, 
South Holland District Council,http://statistics.data.gov.uk/id/local-authority/32UF,Environmental Health,Lincolnshire Legal Services,23/12/2014,IJ00035514,2400.00,Maples Solicitors, 
South Holland District Council,http://statistics.data.gov.uk/id/local-authority/32UF,Environmental Health,Legal Fees,23/12/2014,IJ00035652,3329.60,Maples Solicitors, 
South Holland District Council,http://statistics.data.gov.uk/id/local-authority/32UF,Housing Landlord Manager,Furniture and Equipment,23/12/2014,IJ00035618,617.00,Rexel Uk Ltd, 
South Holland District Council,http://statistics.data.gov.uk/id/local-authority/32UF,Housing Landlord Manager,Materials and Consumables,23/12/2014,IJ00035577,532.13,Rexel Uk Ltd, 
South Holland District Council,http://statistics.data.gov.uk/id/local-authority/32UF,Housing Landlord Manager,Materials and Consumables,23/12/2014,IJ00035583,878.28,Rexel Uk Ltd, 
South Holland District Council,http://statistics.data.gov.uk/id/local-authority/32UF,Housing Landlord Manager,Materials and Consumables,23/12/2014,IJ00035609,730.85,Rexel Uk Ltd, 
South Holland District Council,http://statistics.data.gov.uk/id/local-authority/32UF,Environmental Services,Stationery,23/12/2014,IJ00035553,204.08,Royal Mail Group Ltd, 
South Holland District Council,http://statistics.data.gov.uk/id/local-authority/32UF,Environmental Services,Stationery,23/12/2014,IJ00035553,22.01,Royal Mail Group Ltd, 
South Holland District Council,http://statistics.data.gov.uk/id/local-authority/32UF,Environmental Health,Stationery,23/12/2014,IJ00035553,177.99,Royal Mail Group Ltd, 
South Holland District Council,http://statistics.data.gov.uk/id/local-authority/32UF,Environmental Health,Stationery,23/12/2014,IJ00035553,126.98,Royal Mail Group Ltd, 
South Holland District Council,http://statistics.data.gov.uk/id/local-authority/32UF,Environmental Health,Stationery,23/12/2014,IJ00035553,22.01,Royal Mail Group Ltd, 
South Holland District Council,http://statistics.data.gov.uk/id/local-authority/32UF,Environmental Services,Stationery,23/12/2014,IJ00035553,100.90,Royal Mail Group Ltd, 
South Holland District Council,http://statistics.data.gov.uk/id/local-authority/32UF,Housing Landlord Manager,Void Repairs,23/12/2014,IJ00035603,1350.00,South Holland Maintenance Ltd, 
South Holland District Council,http://statistics.data.gov.uk/id/local-authority/32UF,Housing Landlord Manager,Buildings Maintenance - Responsive,23/12/2014,IJ00035603,90.00,South Holland Maintenance Ltd, 
South Holland District Council,http://statistics.data.gov.uk/id/local-authority/32UF,Housing Landlord Manager,Void Repairs,23/12/2014,IJ00035585,3800.00,South Holland Maintenance Ltd, 
South Holland District Council,http://statistics.data.gov.uk/id/local-authority/32UF,Environmental Services,Grants and Contributions- Where a Service is Received,23/12/2014,IJ00035522,956.80,Broxap Ltd, 
South Holland District Council,http://statistics.data.gov.uk/id/local-authority/32UF,Collection Fund,Precept- Lincolnshire County Council,23/12/2014,IJ00035697,2750115.00,Lincolnshire County Council, 
South Holland District Council,http://statistics.data.gov.uk/id/local-authority/32UF,Collection Fund,Share of NDR Income - Lincolnshire,23/12/2014,IJ00035697,249590.00,Lincolnshire County Council, 
South Holland District Council,http://statistics.data.gov.uk/id/local-authority/32UF,Collection Fund,Precept - Lincolnshire Police,23/12/2014,IJ00035696,500188.39,LOCAL POLICE AUTHORITY FUND ACCOUNT, 
South Holland District Council,http://statistics.data.gov.uk/id/local-authority/32UF,Community Development,Other Miscellaneous Expenses,23/12/2014,IJ00035531,1058.27,PRS for Music, 
South Holland District Council,http://statistics.data.gov.uk/id/local-authority/32UF,Community Development,Other Miscellaneous Expenses,23/12/2014,IJ00035532,991.88,PRS for Music, 
South Holland District Council,http://statistics.data.gov.uk/id/local-authority/32UF,Housing Landlord Manager,Buildings Maintenance - Responsive,23/12/2014,IJ00035575,670.00,Paul Sharpe Painter and Decorator, 
South Holland District Council,http://statistics.data.gov.uk/id/local-authority/32UF,Housing Landlord Manager,Buildings Maintenance - Responsive,23/12/2014,IJ00035576,790.00,Paul Sharpe Painter and Decorator, 
South Holland District Council,http://statistics.data.gov.uk/id/local-authority/32UF,Community Development,Subscriptions to Organisations and Other Bodies,23/12/2014,IJ00035701,1550.00,LINCOLNSHIRE REGISTRATION AND CELEBRATORY SERVICES, 
South Holland District Council,http://statistics.data.gov.uk/id/local-authority/32UF,Housing Landlord Manager,Furniture and Equipment,23/12/2014,IJ00035646,518.99,VEOLIA ES UK LTD, 
South Holland District Council,http://statistics.data.gov.uk/id/local-authority/32UF,Housing Landlord Manager,Furniture and Equipment,23/12/2014,IJ00035646,518.99,VEOLIA ES UK LTD, 
South Holland District Council,http://statistics.data.gov.uk/id/local-authority/32UF,Housing Landlord Manager,Furniture and Equipment,23/12/2014,IJ00035693,311.24,VEOLIA ES UK LTD, 
South Holland District Council,http://statistics.data.gov.uk/id/local-authority/32UF,Housing Landlord Manager,Furniture and Equipment,23/12/2014,IJ00035693,311.24,VEOLIA ES UK LTD, 
South Holland District Council,http://statistics.data.gov.uk/id/local-authority/32UF,Housing Landlord Manager,Furniture and Equipment,23/12/2014,IJ00035694,938.07,VEOLIA ES UK LTD, 
South Holland District Council,http://statistics.data.gov.uk/id/local-authority/32UF,Housing Landlord Manager,Furniture and Equipment,23/12/2014,IJ00035694,938.07,VEOLIA ES UK LTD, 
South Holland District Council,http://statistics.data.gov.uk/id/local-authority/32UF,Housing Landlord Manager,Furniture and Equipment,23/12/2014,IJ00035581,1226.08,Hilti GB Ltd, 
South Holland District Council,http://statistics.data.gov.uk/id/local-authority/32UF,Housing Landlord Manager,Furniture and Equipment,23/12/2014,IJ00035581,722.57,Hilti GB Ltd, 
South Holland District Council,http://statistics.data.gov.uk/id/local-authority/32UF,Housing Landlord Manager,Buildings Maintenance - Responsive,23/12/2014,IJ00035658,506.00,Andrew Hicks t a Hicks Electrical, 
South Holland District Council,http://statistics.data.gov.uk/id/local-authority/32UF,Housing Landlord Manager,Buildings Maintenance - Responsive,23/12/2014,IJ00035659,550.00,Andrew Hicks t a Hicks Electrical, 
South Holland District Council,http://statistics.data.gov.uk/id/local-authority/32UF,Housing Landlord Manager,External Painting Repairs,23/12/2014,IJ00035546,9970.62,Novus Property Solutions Ltd, 
South Holland District Council,http://statistics.data.gov.uk/id/local-authority/32UF,Capital,Works to Buildings (main Contractor),23/12/2014,IJ00035705,1830.08,Sustainable Energy Connection  Ltd, 
South Holland District Council,http://statistics.data.gov.uk/id/local-authority/32UF,Capital,Works to Buildings (main Contractor),23/12/2014,IJ00035549,3655.00,MCP Environmental, 
South Holland District Council,http://statistics.data.gov.uk/id/local-authority/32UF,Capital,Works to Buildings (main Contractor),23/12/2014,IJ00035550,7270.00,MCP Environmental, 
South Holland District Council,http://statistics.data.gov.uk/id/local-authority/32UF,Capital,Works to Buildings (main Contractor),23/12/2014,IJ00035551,4185.00,MCP Environmental, 
South Holland District Council,http://statistics.data.gov.uk/id/local-authority/32UF,Environmental Health,Course Fees,23/12/2014,IJ00035673,1125.00,Highfield Awarding Body for Compliance, 
South Holland District Council,http://statistics.data.gov.uk/id/local-authority/32UF,ICT and Customer Services,Professional & Contractors Fees,23/12/2014,IJ00035538,5040.00,NTA Monitor Limited, 
South Holland District Council,http://statistics.data.gov.uk/id/local-authority/32UF,Community Development,External Printing and Design Costs,23/12/2014,IJ00035572,1302.00,Streamline Corporate, 
South Holland District Council,http://statistics.data.gov.uk/id/local-authority/32UF,Community Development,Performers and Entertainers Fees,23/12/2014,IJ00035571,785.00,Funhouse Comedy, 
South Holland District Council,http://statistics.data.gov.uk/id/local-authority/32UF,Housing Landlord Manager,Gas Renewals,23/12/2014,IJ00035547,10514.47,Aaron Services Ltd, 
South Holland District Council,http://statistics.data.gov.uk/id/local-authority/32UF,Housing Landlord Manager,Gas Servicing,23/12/2014,IJ00035548,22107.46,Aaron Services Ltd, 
South Holland District Council,http://statistics.data.gov.uk/id/local-authority/32UF,Planning,License Fees,23/12/2014,IJ00035544,120.18,Phoenix Software Ltd, 
South Holland District Council,http://statistics.data.gov.uk/id/local-authority/32UF,Planning,License Fees,23/12/2014,IJ00035544,360.53,Phoenix Software Ltd, 
South Holland District Council,http://statistics.data.gov.uk/id/local-authority/32UF,Planning,License Fees,23/12/2014,IJ00035544,120.17,Phoenix Software Ltd, 
South Holland District Council,http://statistics.data.gov.uk/id/local-authority/32UF,Planning,License Fees,23/12/2014,IJ00035544,120.17,Phoenix Software Ltd, 
South Holland District Council,http://statistics.data.gov.uk/id/local-authority/32UF,Capital,Purchase of Vehicles,23/12/2014,IJ00035688,13995.88,Ford Motor Company Limited, 
South Holland District Council,http://statistics.data.gov.uk/id/local-authority/32UF,Capital,Purchase of Vehicles,23/12/2014,IJ00035688,280.00,Ford Motor Company Limited, 
South Holland District Council,http://statistics.data.gov.uk/id/local-authority/32UF,Community Development,Performers and Entertainers Fees,23/12/2014,IJ00035523,2574.37,Barry Collings Entertainments, 
South Holland District Council,http://statistics.data.gov.uk/id/local-authority/32UF,Environmental Services,Other Communication Costs,23/12/2014,IJ00035700,1127.38,Signs Express Peterborough and Kings Lynn, 
South Holland District Council,http://statistics.data.gov.uk/id/local-authority/32UF,Environmental Services,Other Communication Costs,23/12/2014,IJ00035702,640.00,Signs Express Peterborough and Kings Lynn, 
South Holland District Council,http://statistics.data.gov.uk/id/local-authority/32UF,Planning,Gross Pay,29/12/2014,IJ00035727,594.00,Plann.It Limited, 
